[Event "Titled Tuesday Blitz January 10 Early 2023"]
[White "Rosh Jain"]
[Black "Becerra, Juan David"]
[WhiteFideId "25789465"]
[BlackFideId "4404998"]
[WhiteElo "2248"]
[BlackElo "2382"]
[Result "1-0"]
[Round "10"]
[TimeControl "180+2"]
[Date "2023.01.10"]
[WhiteClock "0:01:27"]
[BlackClock "0:00:22"]

1. e4 {[%clk 0:02:54]}  e6 {[%clk 0:03:00]} 2. d4 {[%clk 0:02:52]}  d5 {[%clk 0:02:59]} 3. Nc3 {[%clk 0:02:52]}  Bb4 {[%clk 0:02:58]} 4. exd5 {[%clk 0:02:52]}  exd5 {[%clk 0:02:58]} 5. Qf3 {[%clk 0:02:52]}  Ne7 {[%clk 0:02:54]} 6. Bd3 {[%clk 0:02:51]}  Nbc6 {[%clk 0:02:49]} 7. Ne2 {[%clk 0:02:51]}  Qd6 {[%clk 0:02:33]} 8. Bf4 {[%clk 0:02:49]}  Qe6 {[%clk 0:02:18]} 9. O-O {[%clk 0:02:43]}  Bd6 {[%clk 0:02:06]} 10. Rfe1 {[%clk 0:02:43]}  Bd7 {[%clk 0:01:45]} 11. Ng3 {[%clk 0:02:22]}  Qg4 {[%clk 0:01:10]} 12. Qxg4 {[%clk 0:02:18]}  Bxg4 {[%clk 0:01:11]} 13. Bxd6 {[%clk 0:02:18]}  cxd6 {[%clk 0:01:12]} 14. Nxd5 {[%clk 0:02:18]}  Kd7 {[%clk 0:00:59]} 15. Nxe7 {[%clk 0:02:17]}  Nxe7 {[%clk 0:00:58]} 16. Bb5+ {[%clk 0:02:16]}  Kd8 {[%clk 0:00:55]} 17. Ne4 {[%clk 0:02:15]}  Nf5 {[%clk 0:00:46]} 18. h3 {[%clk 0:02:09]}  Nxd4 {[%clk 0:00:39]} 19. Nxd6 {[%clk 0:02:08]}  Nxb5 {[%clk 0:00:33]} 20. Nxf7+ {[%clk 0:02:05]}  Kc7 {[%clk 0:00:26]} 21. hxg4 {[%clk 0:02:04]}  Rhf8 {[%clk 0:00:21]} 22. Ne5 {[%clk 0:02:04]}  Rae8 {[%clk 0:00:19]} 23. Nd3 {[%clk 0:02:02]}  Nd4 {[%clk 0:00:18]} 24. Rxe8 {[%clk 0:01:51]}  Rxe8 {[%clk 0:00:19]} 25. Re1 {[%clk 0:01:47]}  Rxe1+ {[%clk 0:00:18]} 26. Nxe1 {[%clk 0:01:47]}  Ne2+ {[%clk 0:00:18]} 27. Kf1 {[%clk 0:01:46]}  Nf4 {[%clk 0:00:19]} 28. f3 {[%clk 0:01:46]}  Kd6 {[%clk 0:00:19]} 29. Kf2 {[%clk 0:01:46]}  Ke5 {[%clk 0:00:19]} 30. Nd3+ {[%clk 0:01:44]}  Nxd3+ {[%clk 0:00:19]} 31. cxd3 {[%clk 0:01:45]}  Kd4 {[%clk 0:00:19]} 32. Ke2 {[%clk 0:01:46]}  g6 {[%clk 0:00:20]} 33. Kd2 {[%clk 0:01:46]}  h6 {[%clk 0:00:21]} 34. Ke2 {[%clk 0:01:45]}  b6 {[%clk 0:00:22]} 35. Kd2 {[%clk 0:01:45]}  a5 {[%clk 0:00:23]} 36. Ke2 {[%clk 0:01:46]}  b5 {[%clk 0:00:24]} 37. Kd2 {[%clk 0:01:46]}  g5 {[%clk 0:00:22]} 38. Ke2 {[%clk 0:01:45]}  b4 {[%clk 0:00:22]} 39. Kd2 {[%clk 0:01:44]}  a4 {[%clk 0:00:23]} 40. a3 {[%clk 0:01:40]}  bxa3 {[%clk 0:00:22]} 41. bxa3 {[%clk 0:01:41]}  Kd5 {[%clk 0:00:22]} 42. Kc3 {[%clk 0:01:38]}  Kc5 {[%clk 0:00:21]} 43. g3 {[%clk 0:01:35]}  Kd6 {[%clk 0:00:21]} 44. Kc4 {[%clk 0:01:33]}  Kc6 {[%clk 0:00:21]} 45. Kb4 {[%clk 0:01:28]}  Kd5 {[%clk 0:00:20]} 46. Kxa4 {[%clk 0:01:27]}  Kd4 {[%clk 0:00:21]} 47. f4 {[%clk 0:01:27]}  Kxd3 {[%clk 0:00:22]} 48. f5 {[%clk 0:01:27]} 1-0


[Site "https://www.chess.com"]

[Event "Titled Tuesday Blitz January 10 Early 2023"]
[White "Rosenberg, Evan S"]
[Black "Gatterer, Florian"]
[WhiteFideId "2019299"]
[BlackFideId "811688"]
[WhiteElo "1956"]
[BlackElo "2170"]
[Result "1-0"]
[Round "10"]
[TimeControl "180+2"]
[Date "2023.01.10"]
[WhiteClock "0:01:05"]
[BlackClock "0:02:00"]

1. d4 {[%clk 0:03:00]}  Nf6 {[%clk 0:02:56]} 2. Nf3 {[%clk 0:03:01]}  g6 {[%clk 0:02:56]} 3. Nc3 {[%clk 0:03:01]}  Bg7 {[%clk 0:02:56]} 4. e4 {[%clk 0:03:00]}  d6 {[%clk 0:02:57]} 5. Be2 {[%clk 0:03:00]}  O-O {[%clk 0:02:57]} 6. O-O {[%clk 0:03:01]}  a6 {[%clk 0:02:57]} 7. Re1 {[%clk 0:02:59]}  b5 {[%clk 0:02:57]} 8. e5 {[%clk 0:02:59]}  Ne8 {[%clk 0:02:56]} 9. Bg5 {[%clk 0:02:37]}  h6 {[%clk 0:02:55]} 10. Bh4 {[%clk 0:02:36]}  g5 {[%clk 0:02:56]} 11. Bg3 {[%clk 0:02:30]}  Bb7 {[%clk 0:02:56]} 12. e6 {[%clk 0:02:27]}  f5 {[%clk 0:02:55]} 13. h4 {[%clk 0:02:17]}  g4 {[%clk 0:02:47]} 14. Nd2 {[%clk 0:02:04]}  Bxd4 {[%clk 0:02:40]} 15. Bf4 {[%clk 0:01:26]}  Bg7 {[%clk 0:02:39]} 16. Nf1 {[%clk 0:01:23]}  Nf6 {[%clk 0:02:34]} 17. Ng3 {[%clk 0:01:23]}  Nd5 {[%clk 0:02:30]} 18. Nxd5 {[%clk 0:01:22]}  Bxd5 {[%clk 0:02:31]} 19. Qxd5 {[%clk 0:01:22]}  c6 {[%clk 0:02:27]} 20. Qd3 {[%clk 0:01:21]}  c5 {[%clk 0:02:16]} 21. Nxf5 {[%clk 0:01:19]}  c4 {[%clk 0:02:16]} 22. Qd5 {[%clk 0:01:13]}  Ra7 {[%clk 0:02:04]} 23. Nxh6+ {[%clk 0:01:08]}  Bxh6 {[%clk 0:02:02]} 24. Bxh6 {[%clk 0:01:08]}  Rf6 {[%clk 0:02:00]} 25. Qg5+ {[%clk 0:01:05]} 1-0


[Site "https://www.chess.com"]

[Event "Titled Tuesday Blitz January 10 Early 2023"]
[White "De Souza, Cristiano Gomes"]
[Black "Vifleemskaia, Svetlana"]
[WhiteFideId "2151758"]
[BlackFideId "4129490"]
[WhiteElo "2018"]
[BlackElo "1971"]
[Result "0-1"]
[Round "10"]
[TimeControl "180+2"]
[Date "2023.01.10"]
[WhiteClock "0:00:34"]
[BlackClock "0:00:11"]

1. d4 {[%clk 0:02:59]}  Nf6 {[%clk 0:02:59]} 2. c4 {[%clk 0:02:58]}  e6 {[%clk 0:02:57]} 3. Nf3 {[%clk 0:02:59]}  Bb4+ {[%clk 0:02:57]} 4. Bd2 {[%clk 0:02:59]}  Qe7 {[%clk 0:02:57]} 5. Nc3 {[%clk 0:02:55]}  b6 {[%clk 0:02:54]} 6. g3 {[%clk 0:02:55]}  Bb7 {[%clk 0:02:53]} 7. Bg2 {[%clk 0:02:55]}  d6 {[%clk 0:02:50]} 8. O-O {[%clk 0:02:54]}  Bxc3 {[%clk 0:02:49]} 9. Bxc3 {[%clk 0:02:54]}  O-O {[%clk 0:02:46]} 10. Rc1 {[%clk 0:02:55]}  Be4 {[%clk 0:02:45]} 11. Ne1 {[%clk 0:02:53]}  Bxg2 {[%clk 0:02:44]} 12. Nxg2 {[%clk 0:02:54]}  e5 {[%clk 0:02:44]} 13. dxe5 {[%clk 0:02:54]}  dxe5 {[%clk 0:02:43]} 14. Qc2 {[%clk 0:02:52]}  c5 {[%clk 0:02:34]} 15. Rcd1 {[%clk 0:02:50]}  Nc6 {[%clk 0:02:33]} 16. e3 {[%clk 0:02:50]}  Rad8 {[%clk 0:02:30]} 17. Rxd8 {[%clk 0:02:49]}  Rxd8 {[%clk 0:02:30]} 18. Rd1 {[%clk 0:02:50]}  Rxd1+ {[%clk 0:02:29]} 19. Qxd1 {[%clk 0:02:51]}  h6 {[%clk 0:02:15]} 20. Ne1 {[%clk 0:02:42]}  Qd7 {[%clk 0:02:06]} 21. Qxd7 {[%clk 0:02:32]}  Nxd7 {[%clk 0:02:07]} 22. f3 {[%clk 0:02:28]}  Kf8 {[%clk 0:01:59]} 23. Kf2 {[%clk 0:02:28]}  Ke7 {[%clk 0:01:58]} 24. Nd3 {[%clk 0:02:27]}  Ke6 {[%clk 0:01:58]} 25. b3 {[%clk 0:02:25]}  f5 {[%clk 0:01:56]} 26. h4 {[%clk 0:02:17]}  g6 {[%clk 0:01:56]} 27. a3 {[%clk 0:02:13]}  a5 {[%clk 0:01:50]} 28. Nb2 {[%clk 0:01:59]}  Ne7 {[%clk 0:01:36]} 29. Na4 {[%clk 0:01:55]}  Ng8 {[%clk 0:01:32]} 30. Ba1 {[%clk 0:01:52]}  Ngf6 {[%clk 0:01:31]} 31. Nc3 {[%clk 0:01:50]}  e4 {[%clk 0:01:22]} 32. f4 {[%clk 0:01:46]}  Kd6 {[%clk 0:00:59]} 33. Nb5+ {[%clk 0:01:43]}  Kc6 {[%clk 0:00:59]} 34. Bxf6 {[%clk 0:01:37]}  Nxf6 {[%clk 0:00:59]} 35. Nc3 {[%clk 0:01:36]}  Kd6 {[%clk 0:00:57]} 36. Ke2 {[%clk 0:01:33]}  Kc6 {[%clk 0:00:56]} 37. Kd2 {[%clk 0:01:26]}  Kd6 {[%clk 0:00:55]} 38. Na4 {[%clk 0:01:24]}  Kc6 {[%clk 0:00:55]} 39. Nb2 {[%clk 0:01:18]}  Ng4 {[%clk 0:00:51]} 40. Nd1 {[%clk 0:01:17]}  Nf6 {[%clk 0:00:40]} 41. Nf2 {[%clk 0:01:16]}  Nh5 {[%clk 0:00:36]} 42. g4 {[%clk 0:01:14]}  Nf6 {[%clk 0:00:32]} 43. g5 {[%clk 0:01:11]}  hxg5 {[%clk 0:00:31]} 44. fxg5 {[%clk 0:01:12]}  Nd7 {[%clk 0:00:23]} 45. Nh3 {[%clk 0:01:11]}  Ne5 {[%clk 0:00:23]} 46. h5 {[%clk 0:00:55]}  gxh5 {[%clk 0:00:22]} 47. Ke2 {[%clk 0:00:56]}  Kd6 {[%clk 0:00:19]} 48. Nf4 {[%clk 0:00:55]}  h4 {[%clk 0:00:18]} 49. Kf2 {[%clk 0:00:55]}  Ng4+ {[%clk 0:00:16]} 50. Ke2 {[%clk 0:00:51]}  Ke5 {[%clk 0:00:16]} 51. g6 {[%clk 0:00:50]}  Kf6 {[%clk 0:00:15]} 52. Nd5+ {[%clk 0:00:46]}  Kxg6 {[%clk 0:00:15]} 53. Nxb6 {[%clk 0:00:47]}  h3 {[%clk 0:00:15]} 54. Kf1 {[%clk 0:00:47]}  Nxe3+ {[%clk 0:00:15]} 55. Kg1 {[%clk 0:00:47]}  Nc2 {[%clk 0:00:14]} 56. Nd7 {[%clk 0:00:47]}  e3 {[%clk 0:00:12]} 57. Nxc5 {[%clk 0:00:47]}  e2 {[%clk 0:00:13]} 58. Nd3 {[%clk 0:00:47]}  e1=Q+ {[%clk 0:00:13]} 59. Nxe1 {[%clk 0:00:48]}  Nxe1 {[%clk 0:00:13]} 60. c5 {[%clk 0:00:49]}  Nf3+ {[%clk 0:00:13]} 61. Kh1 {[%clk 0:00:49]}  Nd4 {[%clk 0:00:12]} 62. b4 {[%clk 0:00:48]}  axb4 {[%clk 0:00:12]} 63. axb4 {[%clk 0:00:49]}  Kf6 {[%clk 0:00:13]} 64. Kh2 {[%clk 0:00:49]}  Ke6 {[%clk 0:00:13]} 65. Kxh3 {[%clk 0:00:49]}  Kd5 {[%clk 0:00:13]} 66. Kg3 {[%clk 0:00:49]}  Ke4 {[%clk 0:00:13]} 67. Kf2 {[%clk 0:00:47]}  f4 {[%clk 0:00:13]} 68. Ke1 {[%clk 0:00:45]}  Ke3 {[%clk 0:00:13]} 69. Kf1 {[%clk 0:00:45]}  f3 {[%clk 0:00:13]} 70. c6 {[%clk 0:00:33]}  Nxc6 {[%clk 0:00:12]} 71. b5 {[%clk 0:00:34]}  Na5 {[%clk 0:00:11]} 72. b6 {[%clk 0:00:34]}  Nb7 {[%clk 0:00:11]} 73. Ke1 {[%clk 0:00:34]}  f2+ {[%clk 0:00:11]} 74. Kf1 {[%clk 0:00:35]}  Nc5 {[%clk 0:00:11]} 75. Kg2 {[%clk 0:00:34]}  Ke2 {[%clk 0:00:11]} 0-1


[Site "https://www.chess.com"]

[Event "Titled Tuesday Blitz January 10 Early 2023"]
[White "Thiel, Thomas"]
[Black "Mrudul Dehankar"]
[WhiteFideId "4615964"]
[BlackFideId "25096990"]
[WhiteElo "2234"]
[BlackElo "2030"]
[Result "0-1"]
[Round "10"]
[TimeControl "180+2"]
[Date "2023.01.10"]
[WhiteClock "0:00:19"]
[BlackClock "0:00:07"]

1. e4 {[%clk 0:03:00]}  c6 {[%clk 0:02:55]} 2. d4 {[%clk 0:02:59]}  d5 {[%clk 0:02:55]} 3. exd5 {[%clk 0:02:59]}  cxd5 {[%clk 0:02:51]} 4. c4 {[%clk 0:02:59]}  Nc6 {[%clk 0:02:51]} 5. Nc3 {[%clk 0:02:52]}  Nf6 {[%clk 0:02:50]} 6. Nf3 {[%clk 0:02:48]}  Bg4 {[%clk 0:02:50]} 7. cxd5 {[%clk 0:02:42]}  Nxd5 {[%clk 0:02:49]} 8. Qb3 {[%clk 0:02:41]}  Bxf3 {[%clk 0:02:38]} 9. gxf3 {[%clk 0:02:42]}  e6 {[%clk 0:02:38]} 10. Qxb7 {[%clk 0:02:39]}  Nxd4 {[%clk 0:02:38]} 11. Bb5+ {[%clk 0:02:32]}  Nxb5 {[%clk 0:02:38]} 12. Qxb5+ {[%clk 0:02:32]}  Ke7 {[%clk 0:02:37]} 13. Qc5+ {[%clk 0:02:25]}  Qd6 {[%clk 0:02:27]} 14. Nxd5+ {[%clk 0:02:22]}  exd5 {[%clk 0:02:25]} 15. Qe3+ {[%clk 0:02:21]}  Qe6 {[%clk 0:02:23]} 16. O-O {[%clk 0:02:17]}  Qxe3 {[%clk 0:02:08]} 17. fxe3 {[%clk 0:02:14]}  Ke6 {[%clk 0:02:05]} 18. Bd2 {[%clk 0:02:13]}  Bc5 {[%clk 0:02:02]} 19. Kf2 {[%clk 0:02:05]}  Rac8 {[%clk 0:02:00]} 20. Ke2 {[%clk 0:02:04]}  Rhe8 {[%clk 0:01:59]} 21. Kd3 {[%clk 0:02:04]}  f6 {[%clk 0:01:53]} 22. Rac1 {[%clk 0:02:01]}  Bb6 {[%clk 0:01:52]} 23. Rxc8 {[%clk 0:01:58]}  Rxc8 {[%clk 0:01:51]} 24. Rc1 {[%clk 0:01:58]}  Rxc1 {[%clk 0:01:50]} 25. Bxc1 {[%clk 0:01:59]}  g5 {[%clk 0:01:49]} 26. b4 {[%clk 0:01:52]}  h5 {[%clk 0:01:46]} 27. h3 {[%clk 0:01:52]}  Kf5 {[%clk 0:01:42]} 28. a4 {[%clk 0:01:50]}  a6 {[%clk 0:01:41]} 29. a5 {[%clk 0:01:49]}  Ba7 {[%clk 0:01:40]} 30. Bb2 {[%clk 0:01:49]}  Ke6 {[%clk 0:00:48]} 31. Bd4 {[%clk 0:01:48]}  Bb8 {[%clk 0:00:46]} 32. b5 {[%clk 0:01:48]}  axb5 {[%clk 0:00:43]} 33. a6 {[%clk 0:01:48]}  f5 {[%clk 0:00:37]} 34. a7 {[%clk 0:01:37]}  Bxa7 {[%clk 0:00:36]} 35. Bxa7 {[%clk 0:01:36]}  g4 {[%clk 0:00:34]} 36. fxg4 {[%clk 0:01:37]}  fxg4 {[%clk 0:00:27]} 37. hxg4 {[%clk 0:01:36]}  hxg4 {[%clk 0:00:26]} 38. Bb8 {[%clk 0:01:35]}  b4 {[%clk 0:00:18]} 39. Kc2 {[%clk 0:01:14]}  Kf5 {[%clk 0:00:11]} 40. Kb3 {[%clk 0:01:13]}  Ke4 {[%clk 0:00:11]} 41. Kxb4 {[%clk 0:01:00]}  Kxe3 {[%clk 0:00:11]} 42. Bc7 {[%clk 0:00:51]}  d4 {[%clk 0:00:09]} 43. Bb6 {[%clk 0:00:44]}  Kd3 {[%clk 0:00:07]} 44. Bc7 {[%clk 0:00:43]}  Ke2 {[%clk 0:00:06]} 45. Bb6 {[%clk 0:00:29]}  d3 {[%clk 0:00:07]} 46. Kc3 {[%clk 0:00:19]}  d2 {[%clk 0:00:07]} 0-1


[Site "https://www.chess.com"]

[Event "Titled Tuesday Blitz January 10 Early 2023"]
[White "Prudnykova, Olga"]
[Black "Ivanova, Karina"]
[WhiteFideId "14121093"]
[BlackFideId "24139750"]
[WhiteElo "2268"]
[BlackElo "2085"]
[Result "0-1"]
[Round "10"]
[TimeControl "180+2"]
[Date "2023.01.10"]
[WhiteClock "0:00:01"]
[BlackClock "0:00:04"]

1. e4 {[%clk 0:03:00]}  c6 {[%clk 0:02:58]} 2. d4 {[%clk 0:03:00]}  d5 {[%clk 0:02:57]} 3. exd5 {[%clk 0:03:01]}  cxd5 {[%clk 0:02:57]} 4. c4 {[%clk 0:03:02]}  Nf6 {[%clk 0:02:57]} 5. Nc3 {[%clk 0:03:03]}  e6 {[%clk 0:02:57]} 6. cxd5 {[%clk 0:03:02]}  Nxd5 {[%clk 0:02:56]} 7. Bd3 {[%clk 0:03:02]}  Bb4 {[%clk 0:02:56]} 8. Bd2 {[%clk 0:02:49]}  Nc6 {[%clk 0:02:54]} 9. Nf3 {[%clk 0:02:49]}  Be7 {[%clk 0:02:53]} 10. Bb1 {[%clk 0:02:46]}  O-O {[%clk 0:02:51]} 11. O-O {[%clk 0:02:46]}  g6 {[%clk 0:02:46]} 12. Bh6 {[%clk 0:02:45]}  Re8 {[%clk 0:02:46]} 13. Re1 {[%clk 0:02:46]}  b6 {[%clk 0:02:44]} 14. Nxd5 {[%clk 0:02:41]}  Qxd5 {[%clk 0:02:21]} 15. Be4 {[%clk 0:02:40]}  Qd6 {[%clk 0:02:20]} 16. Ne5 {[%clk 0:02:32]}  Bb7 {[%clk 0:02:17]} 17. Rc1 {[%clk 0:02:25]}  Rac8 {[%clk 0:02:06]} 18. Bf4 {[%clk 0:02:18]}  Nxe5 {[%clk 0:02:00]} 19. Bxb7 {[%clk 0:02:15]}  Rxc1 {[%clk 0:01:57]} 20. Qxc1 {[%clk 0:02:14]}  Qd7 {[%clk 0:01:55]} 21. Ba6 {[%clk 0:01:42]}  Ng4 {[%clk 0:01:44]} 22. Qc4 {[%clk 0:01:25]}  Rd8 {[%clk 0:01:35]} 23. Be3 {[%clk 0:01:17]}  Nxe3 {[%clk 0:01:30]} 24. fxe3 {[%clk 0:01:18]}  Bd6 {[%clk 0:01:18]} 25. Rc1 {[%clk 0:01:15]}  Qe7 {[%clk 0:01:16]} 26. e4 {[%clk 0:00:54]}  Qg5 {[%clk 0:00:58]} 27. e5 {[%clk 0:00:46]}  Qe3+ {[%clk 0:00:56]} 28. Kh1 {[%clk 0:00:45]}  Bf8 {[%clk 0:00:52]} 29. h3 {[%clk 0:00:24]}  Rxd4 {[%clk 0:00:46]} 30. Qc7 {[%clk 0:00:24]}  Rd7 {[%clk 0:00:37]} 31. Qc3 {[%clk 0:00:18]}  Qxc3 {[%clk 0:00:32]} 32. Rxc3 {[%clk 0:00:17]}  Bc5 {[%clk 0:00:30]} 33. Kh2 {[%clk 0:00:13]}  Bd4 {[%clk 0:00:30]} 34. Rc8+ {[%clk 0:00:12]}  Kg7 {[%clk 0:00:29]} 35. Bb5 {[%clk 0:00:12]}  Bxe5+ {[%clk 0:00:29]} 36. Kg1 {[%clk 0:00:12]}  Rd1+ {[%clk 0:00:28]} 37. Kf2 {[%clk 0:00:11]}  Rd2+ {[%clk 0:00:28]} 38. Ke3 {[%clk 0:00:11]}  Rxg2 {[%clk 0:00:23]} 39. a4 {[%clk 0:00:09]}  Bxb2 {[%clk 0:00:19]} 40. Ra8 {[%clk 0:00:07]}  a5 {[%clk 0:00:18]} 41. Ra7 {[%clk 0:00:06]}  Rg3+ {[%clk 0:00:17]} 42. Kf2 {[%clk 0:00:06]}  Rxh3 {[%clk 0:00:15]} 43. Be8 {[%clk 0:00:06]}  Bd4+ {[%clk 0:00:12]} 44. Kg2 {[%clk 0:00:06]}  Ra3 {[%clk 0:00:09]} 45. Rxf7+ {[%clk 0:00:05]}  Kh6 {[%clk 0:00:07]} 46. Rf4 {[%clk 0:00:04]}  e5 {[%clk 0:00:06]} 47. Rh4+ {[%clk 0:00:03]}  Kg7 {[%clk 0:00:06]} 48. Bb5 {[%clk 0:00:03]}  h5 {[%clk 0:00:06]} 49. Re4 {[%clk 0:00:01]}  Kf6 {[%clk 0:00:06]} 50. Re2 {[%clk 0:00:01]}  g5 {[%clk 0:00:05]} 51. Rc2 {[%clk 0:00:01]}  Bc5 {[%clk 0:00:04]} 0-1


[Site "https://www.chess.com"]

[Event "Titled Tuesday Blitz January 10 Early 2023"]
[White "Mitrovic, Darko R"]
[Black "Afanasieva, Alexandra"]
[WhiteFideId "927023"]
[BlackFideId "34126926"]
[WhiteElo "2220"]
[BlackElo "1857"]
[Result "1-0"]
[Round "10"]
[TimeControl "180+2"]
[Date "2023.01.10"]
[WhiteClock "0:00:09"]
[BlackClock "0:00:13"]

1. d4 {[%clk 0:02:47]}  d5 {[%clk 0:02:30]} 2. Nf3 {[%clk 0:02:45]}  Nf6 {[%clk 0:02:30]} 3. g3 {[%clk 0:02:45]}  c5 {[%clk 0:02:29]} 4. Bg2 {[%clk 0:02:42]}  Nc6 {[%clk 0:02:30]} 5. O-O {[%clk 0:02:41]}  Bf5 {[%clk 0:02:30]} 6. c4 {[%clk 0:02:38]}  e6 {[%clk 0:02:30]} 7. cxd5 {[%clk 0:02:38]}  exd5 {[%clk 0:02:30]} 8. Nc3 {[%clk 0:02:38]}  h6 {[%clk 0:02:30]} 9. Bf4 {[%clk 0:02:27]}  Be7 {[%clk 0:02:21]} 10. dxc5 {[%clk 0:02:23]}  Bxc5 {[%clk 0:02:16]} 11. Rc1 {[%clk 0:02:22]}  Bb6 {[%clk 0:02:11]} 12. Na4 {[%clk 0:02:09]}  O-O {[%clk 0:02:07]} 13. Nxb6 {[%clk 0:02:08]}  Qxb6 {[%clk 0:02:08]} 14. b3 {[%clk 0:01:57]}  Rac8 {[%clk 0:02:00]} 15. Be3 {[%clk 0:01:36]}  Qa6 {[%clk 0:01:55]} 16. Qd2 {[%clk 0:01:23]}  Rfd8 {[%clk 0:01:54]} 17. Nd4 {[%clk 0:01:21]}  Bg6 {[%clk 0:01:51]} 18. Nxc6 {[%clk 0:01:18]}  bxc6 {[%clk 0:01:52]} 19. Bd4 {[%clk 0:01:10]}  Re8 {[%clk 0:01:38]} 20. Bxf6 {[%clk 0:01:08]}  gxf6 {[%clk 0:01:38]} 21. e3 {[%clk 0:01:06]}  Be4 {[%clk 0:01:34]} 22. Rc5 {[%clk 0:01:01]}  Bxg2 {[%clk 0:01:03]} 23. Kxg2 {[%clk 0:01:00]}  Re4 {[%clk 0:01:00]} 24. Rfc1 {[%clk 0:00:59]}  Qb7 {[%clk 0:00:50]} 25. Qc3 {[%clk 0:00:52]}  Re6 {[%clk 0:00:47]} 26. Qd4 {[%clk 0:00:49]}  Qd7 {[%clk 0:00:38]} 27. a3 {[%clk 0:00:32]}  Qd6 {[%clk 0:00:28]} 28. b4 {[%clk 0:00:31]}  Re4 {[%clk 0:00:28]} 29. Qc3 {[%clk 0:00:27]}  d4 {[%clk 0:00:19]} 30. exd4 {[%clk 0:00:25]}  Rxd4 {[%clk 0:00:19]} 31. Rxc6 {[%clk 0:00:21]}  Qd5+ {[%clk 0:00:19]} 32. Kh3 {[%clk 0:00:10]}  Qf5+ {[%clk 0:00:15]} 33. Kg2 {[%clk 0:00:09]}  Qe4+ {[%clk 0:00:14]} 34. Qf3 {[%clk 0:00:08]}  Rxc6 {[%clk 0:00:07]} 35. Qxe4 {[%clk 0:00:05]}  Rxe4 {[%clk 0:00:08]} 36. Rxc6 {[%clk 0:00:06]}  Rd4 {[%clk 0:00:08]} 37. Ra6 {[%clk 0:00:05]}  Kf8 {[%clk 0:00:08]} 38. Rxa7 {[%clk 0:00:04]}  Rd3 {[%clk 0:00:08]} 39. Ra5 {[%clk 0:00:04]}  Ke7 {[%clk 0:00:08]} 40. h4 {[%clk 0:00:04]}  Rb3 {[%clk 0:00:06]} 41. b5 {[%clk 0:00:04]}  Kd6 {[%clk 0:00:07]} 42. a4 {[%clk 0:00:05]}  Rb4 {[%clk 0:00:06]} 43. Ra6+ {[%clk 0:00:05]}  Ke7 {[%clk 0:00:06]} 44. b6 {[%clk 0:00:05]}  Kd7 {[%clk 0:00:07]} 45. a5 {[%clk 0:00:05]}  Kc6 {[%clk 0:00:07]} 46. Ra7 {[%clk 0:00:05]}  Rb5 {[%clk 0:00:07]} 47. Rc7+ {[%clk 0:00:04]}  Kd6 {[%clk 0:00:07]} 48. Ra7 {[%clk 0:00:04]}  Kc6 {[%clk 0:00:07]} 49. b7 {[%clk 0:00:04]}  Rxb7 {[%clk 0:00:03]} 50. Rxb7 {[%clk 0:00:04]}  Kxb7 {[%clk 0:00:04]} 51. Kf3 {[%clk 0:00:04]}  Ka6 {[%clk 0:00:05]} 52. Kf4 {[%clk 0:00:05]}  Kxa5 {[%clk 0:00:06]} 53. Kf5 {[%clk 0:00:06]}  Kb6 {[%clk 0:00:07]} 54. Kxf6 {[%clk 0:00:06]}  Kc5 {[%clk 0:00:07]} 55. Kxf7 {[%clk 0:00:07]}  Kd4 {[%clk 0:00:08]} 56. Kg6 {[%clk 0:00:07]}  Ke4 {[%clk 0:00:09]} 57. Kxh6 {[%clk 0:00:08]}  Kf3 {[%clk 0:00:10]} 58. h5 {[%clk 0:00:08]}  Kxf2 {[%clk 0:00:11]} 59. g4 {[%clk 0:00:08]}  Kg3 {[%clk 0:00:12]} 60. g5 {[%clk 0:00:09]}  Kg4 {[%clk 0:00:13]} 61. g6 {[%clk 0:00:09]} 1-0


[Site "https://www.chess.com"]